[Event "European School-ch 2019"]
[Site "Mamaia"]
[Date "2019.05.31"]
[Round "1.47"]
[White "Babic, Milana"]
[Black "Gaszka, Zuzanna"]
[Result "1-0"]
[ECO "A05"]
[WhiteElo "1677"]
[BlackElo "1267"]
[Annotator "NA"]
[PlyCount "115"]
[EventDate "2019.05.31"]
[EventType "swiss"]
[EventCountry "ROU"]
[SourceTitle "playchess.com"]
[Source "ChessBase"]
[SourceQuality "1"]
[TimeControl "40/5400+30:1800+30"]

1. Nf3 {[%emt 0:00:00]} Nf6 {[%emt 0:00:00]} 2. g3 {[%emt 0:00:00]} g6 {[%emt 0:00:05]} 3. Bg2 {[%emt 0:00:00]} Bg7 {[%emt 0:00:28]} 4. O-O {[%emt 0:00:00]} O-O {[%emt 0:00:32]} 5. d4 {[%emt 0:00:00]} d5 {[%emt 0:02:53]} 6. b3 {[%emt 0:00:35]} c5 {[%emt 0:05:59]} 7. Bb2 {[%emt 0:02:02]} Nbd7 {[%emt 0:02:37]} 8. Nbd2 {[%emt 0:00:56]} Qc7 {[%emt 0:04:57]} 9. c4 {[%emt 0:05:45]} e6 {[%emt 0:03:15]} 10. Rc1 {[%emt 0:01:43]} b6 {[%emt 0:02:43]} 11. Ba3 {[%emt 0:06:28]} Ne4 {[%emt 0:05:07]} 12. cxd5 {[%emt 0:05:00]} exd5 {[%emt 0:05:11]} 13. Nxe4 {[%emt 0:03:51]} dxe4 {[%emt 0:01:05]} 14. Nd2 {[%emt 0:03:12]} Bxd4 {[%emt 0:03:42]} 15. Nxe4 {[%emt 0:00:32]} Bg7 {[%emt 0:07:34]} 16. Nd6 {[%emt 0:08:36]} Rb8 {[%emt 0:02:25]} 17. Nb5 {[%emt 0:00:10]} Qe5 {[%emt 0:02:52]} 18. Nxa7 {[%emt 0:00:41]} Qe6 {[%emt 0:08:17]} 19. Nc6 {[%emt 0:03:21]} Ba6 {[%emt 0:05:46]} 20. Nxb8 {[%emt 0:00:44]} Rxb8 {[%emt 0:00:14]} 21. Qd5 {[%emt 0:01:49]} Qxd5 {[%emt 0:01:42]} 22. Bxd5 {[%emt 0:00:06]} Bh6 {[%emt 0:00:47]} 23. f4 {[%emt 0:01:08]} Bxe2 {[%emt 0:01:38]} 24. Rfe1 {[%emt 0:00:08]} Bg4 {[%emt 0:02:36]} 25. Bb2 {[%emt 0:01:21]} Bg7 {[%emt 0:01:26]} 26. Bxg7 {[%emt 0:00:55]} Kxg7 {[%emt 0:00:11]} 27. Re7 {[%emt 0:00:23]} Rf8 {[%emt 0:00:54]} 28. Kg2 {[%emt 0:00:23]} Nf6 {[%emt 0:00:53]} 29. Bc4 {[%emt 0:00:13]} h5 {[%emt 0:00:57]} 30. h3 {[%emt 0:00:11]} Bf5 {[%emt 0:00:12]} 31. Rd1 {[%emt 0:01:10]} Be4+ {[%emt 0:01:11]} 32. Kf2 {[%emt 0:00:27]} Bf5 {[%emt 0:00:30]} 33. Kg2 {[%emt 0:01:18]} Be4+ {[%emt 0:00:20]} 34. Kh2 {[%emt 0:00:12]} Bc2 {[%emt 0:00:58]} 35. Rd6 {[%emt 0:00:50]} Bb1 {[%emt 0:01:16]} 36. Rxb6 {[%emt 0:00:28]} Bf5 {[%emt 0:01:29]} 37. Rbb7 {[%emt 0:01:01]} Bd7 {[%emt 0:00:28]} 38. Rbxd7 {[%emt 0:00:31]} Nxd7 {[%emt 0:00:18]} 39. Rxd7 {[%emt 0:00:03]} Kg8 {[%emt 0:00:14]} 40. Rc7 {[%emt 0:00:12]} Kg7 {[%emt 0:00:33]} 41. Rxc5 {[%emt 0:30:09]} Rd8 {[%emt 0:30:09]} 42. Rd5 {[%emt 0:00:10]} Ra8 {[%emt 0:00:13]} 43. b4 {[%emt 0:00:06]} Rb8 {[%emt 0:00:10]} 44. b5 {[%emt 0:00:07]} Rb6 {[%emt 0:00:07]} 45. a4 {[%emt 0:00:04]} Kf8 {[%emt 0:00:30]} 46. a5 {[%emt 0:00:05]} Rb8 {[%emt 0:00:13]} 47. Rd7 {[%emt 0:00:10]} Ke8 {[%emt 0:00:23]} 48. Rxf7 {[%emt 0:00:10]} Rc8 {[%emt 0:00:15]} 49. Be6 {[%emt 0:00:48]} Rc2+ {[%emt 0:00:08]} 50. Kg1 {[%emt 0:00:05]} Rc1+ {[%emt 0:00:05]} 51. Kf2 {[%emt 0:00:02]} Rb1 {[%emt 0:00:25]} 52. Rb7 {[%emt 0:00:12]} Rb2+ {[%emt 0:00:19]} 53. Ke3 {[%emt 0:00:04]} Kd8 {[%emt 0:00:32]} 54. a6 {[%emt 0:00:32]} Rb1 {[%emt 0:01:20]} 55. a7 {[%emt 0:00:19]} Re1+ {[%emt 0:00:44]} 56. Kd2 {[%emt 0:00:05]} Ra1 {[%emt 0:00:13]} 57. Rb8+ {[%emt 0:00:07]} Ke7 {[%emt 0:00:19]} 58. a8=Q 1-0

[Event "European School-ch 2019"]
[Site "Mamaia"]
[Date "2019.05.31"]
[Round "1.48"]
[White "Zlateva, Viktoriya"]
[Black "Rasheva, Nora"]
[Result "0-1"]
[ECO "B10"]
[WhiteElo "1266"]
[BlackElo "1475"]
[Annotator "NA"]
[PlyCount "88"]
[EventDate "2019.05.31"]
[EventType "swiss"]
[EventCountry "ROU"]
[SourceTitle "playchess.com"]
[Source "ChessBase"]
[SourceQuality "1"]
[TimeControl "40/5400+30:1800+30"]

1. e4 {[%emt 0:00:00]} c6 {[%emt 0:00:00]} 2. Nc3 {[%emt 0:00:00]} d5 {[%emt 0:00:00]} 3. Qf3 {[%emt 0:00:00]} Nf6 {[%emt 0:00:40]} 4. e5 {[%emt 0:00:22]} Nfd7 {[%emt 0:00:49]} 5. d4 {[%emt 0:00:33]} e6 {[%emt 0:00:23]} 6. a3 {[%emt 0:00:16]} c5 {[%emt 0:01:43]} 7. Be3 {[%emt 0:22:12]} Nc6 {[%emt 0:02:15]} 8. dxc5 {[%emt 0:23:58]} Ndxe5 {[%emt 0:00:44]} 9. Qg3 {[%emt 0:00:44]} Ng6 {[%emt 0:18:20]} 10. Nf3 {[%emt 0:21:05]} e5 {[%emt 0:18:02]} 11. Rd1 {[%emt 0:06:59]} d4 {[%emt 0:07:25]} 12. b4 {[%emt 0:08:05]} a6 13. Ne4 {[%emt 0:02:59]} f5 {[%emt 0:22:01]} 14. Bg5 {[%emt 0:05:12]} Qc7 {[%emt 0:00:19]} 15. Nxd4 {[%emt 0:02:12]} f4 {[%emt 0:04:20]} 16. Qd3 {[%emt 0:01:58]} Nxd4 {[%emt 0:00:35]} 17. c3 {[%emt 0:00:37]} Ne6 {[%emt 0:00:16]} 18. Bf6 {[%emt 0:00:28]} gxf6 {[%emt 0:05:18]} 19. Nxf6+ {[%emt 0:00:12]} Kf7 {[%emt 0:00:08]} 20. Nd5 {[%emt 0:00:42]} Qd8 {[%emt 0:01:42]} 21. Qf5+ {[%emt 0:00:24]} Kg7 {[%emt 0:01:01]} 22. Nxf4 {[%emt 0:00:57]} Qf6 {[%emt 0:00:48]} 23. Nh5+ {[%emt 0:00:07]} Kh6 {[%emt 0:00:17]} 24. Qxf6 {[%emt 0:00:07]} Kxh5 {[%emt 0:00:08]} 25. Be2+ {[%emt 0:00:13]} Kh6 {[%emt 0:00:05]} 26. Qf3 {[%emt 0:00:16]} Nef4 {[%emt 0:00:15]} 27. g3 {[%emt 0:00:45]} Nxe2 {[%emt 0:00:04]} 28. Qxe2 {[%emt 0:00:15]} Bf5 {[%emt 0:00:17]} 29. g4 {[%emt 0:00:15]} Be6 {[%emt 0:00:12]} 30. h4 {[%emt 0:00:41]} Nf4 {[%emt 0:00:09]} 31. g5+ {[%emt 0:00:21]} Kg6 {[%emt 0:00:37]} 32. Qe4+ {[%emt 0:00:11]} Bf5 {[%emt 0:00:22]} 33. Qxb7 {[%emt 0:00:38]} Re8 {[%emt 0:00:27]} 34. Qc6+ {[%emt 0:00:12]} Re6 {[%emt 0:00:04]} 35. Qf3 {[%emt 0:00:28]} Nh5 {[%emt 0:01:04]} 36. O-O {[%emt 0:01:11]} Nf4 {[%emt 0:01:19]} 37. a4 {[%emt 0:01:24]} h6 {[%emt 0:00:21]} 38. Rfe1 {[%emt 0:01:10]} hxg5 {[%emt 0:00:15]} 39. hxg5 {[%emt 0:00:45]} Rh3 {[%emt 0:00:49]} 40. Qa8 {[%emt 0:00:25]} Kxg5 {[%emt 0:11:43]} 41. Qxf8 {[%emt 0:30:37]} Reh6 {[%emt 0:30:11]} 42. Qg7+ {[%emt 0:00:30]} Rg6 {[%emt 0:00:07]} 43. Qe7+ {[%emt 0:00:10]} Kh5+ {[%emt 0:00:08]} 44. Qg5+ {[%emt 0:00:20]} Rxg5+ {[%emt 0:00:04]} 0-1

[Event "European School-ch 2019"]
[Site "Mamaia"]
[Date "2019.05.31"]
[Round "1.49"]
[White "Aydin, Gulenay"]
[Black "Petrova, Elizaveta"]
[Result "1/2-1/2"]
[ECO "B40"]
[WhiteElo "1975"]
[BlackElo "1570"]
[Annotator "NA"]
[PlyCount "122"]
[EventDate "2019.05.31"]
[EventType "swiss"]
[EventCountry "ROU"]
[SourceTitle "playchess.com"]
[Source "ChessBase"]
[SourceQuality "1"]
[TimeControl "40/5400+30:1800+30"]

1. e4 {[%emt 0:00:00]} c5 {[%emt 0:00:00]} 2. Nf3 {[%emt 0:00:00]} e6 {[%emt 0:00:00]} 3. c3 {[%emt 0:00:00]} Nf6 {[%emt 0:00:11]} 4. e5 {[%emt 0:00:00]} Nd5 {[%emt 0:00:07]} 5. d4 {[%emt 0:00:00]} cxd4 {[%emt 0:00:13]} 6. cxd4 {[%emt 0:00:02]} d6 {[%emt 0:00:08]} 7. a3 {[%emt 0:02:31]} Nc6 {[%emt 0:00:35]} 8. Bd3 {[%emt 0:01:32]} dxe5 {[%emt 0:03:13]} 9. dxe5 {[%emt 0:00:42]} g6 {[%emt 0:00:43]} 10. O-O {[%emt 0:04:15]} Bg7 {[%emt 0:01:38]} 11. Re1 {[%emt 0:02:48]} O-O {[%emt 0:00:42]} 12. Qe2 {[%emt 0:12:17]} b6 {[%emt 0:06:15]} 13. Bg5 {[%emt 0:06:10]} Qc7 {[%emt 0:04:39]} 14. Qe4 {[%emt 0:08:58]} Bb7 {[%emt 0:09:49]} 15. Nbd2 {[%emt 0:06:48]} h6 {[%emt 0:04:43]} 16. Bh4 {[%emt 0:04:53]} Nce7 {[%emt 0:12:33]} 17. Qg4 {[%emt 0:12:19]} Nf5 {[%emt 0:06:21]} 18. Rad1 {[%emt 0:09:18]} Nxh4 {[%emt 0:07:03]} 19. Qxh4 {[%emt 0:02:19]} Qe7 {[%emt 0:03:38]} 20. Qg3 {[%emt 0:03:53]} Nc7 {[%emt 0:05:32]} 21. Ne4 {[%emt 0:03:11]} Bxe4 {[%emt 0:06:16]} 22. Bxe4 {[%emt 0:00:39]} Rad8 {[%emt 0:01:26]} 23. h4 {[%emt 0:05:20]} Rxd1 {[%emt 0:02:59]} 24. Rxd1 {[%emt 0:00:02]} Rd8 {[%emt 0:00:20]} 25. Rc1 {[%emt 0:02:19]} Nb5 {[%emt 0:03:20]} 26. h5 {[%emt 0:05:20]} g5 {[%emt 0:00:57]} 27. Qg4 {[%emt 0:01:41]} Kh8 {[%emt 0:08:56]} 28. Bb1 {[%emt 0:00:45]} Nc7 {[%emt 0:01:23]} 29. Qe4 {[%emt 0:00:39]} Kg8 {[%emt 0:00:08]} 30. Nd4 {[%emt 0:01:43]} Rd5 {[%emt 0:03:37]} 31. Nc6 {[%emt 0:03:43]} Qd7 {[%emt 0:00:40]} 32. Kh2 {[%emt 0:00:42]} Na6 {[%emt 0:02:57]} 33. b4 {[%emt 0:00:48]} Qc7 {[%emt 0:01:14]} 34. g3 {[%emt 0:00:45]} Nb8 {[%emt 0:02:21]} 35. b5 {[%emt 0:00:08]} Nxc6 {[%emt 0:00:22]} 36. Rxc6 {[%emt 0:00:23]} Qd7 {[%emt 0:00:55]} 37. Rd6 {[%emt 0:01:00]} Rxd6 {[%emt 0:00:23]} 38. exd6 {[%emt 0:00:02]} Qxd6 39. Qa8+ {[%emt 0:00:53]} Bf8 {[%emt 0:01:06]} 40. Qxa7 {[%emt 0:00:33]} Qc5 {[%emt 0:01:27]} 41. Kg2 {[%emt 0:04:14]} Qxb5 {[%emt 0:04:16]} 42. Be4 {[%emt 0:03:12]} Qb2 {[%emt 0:12:35]} 43. Qa6 {[%emt 0:14:39]} Bc5 {[%emt 0:02:08]} 44. Qf1 {[%emt 0:01:08]} Qxa3 {[%emt 0:01:20]} 45. Qd1 {[%emt 0:01:20]} Qb2 {[%emt 0:01:27]} 46. Qf3 {[%emt 0:02:18]} Kg7 {[%emt 0:03:59]} 47. Bc6 {[%emt 0:00:58]} Qf6 {[%emt 0:00:55]} 48. Qe2 {[%emt 0:00:40]} e5 {[%emt 0:01:02]} 49. Bf3 {[%emt 0:02:19]} Qe6 {[%emt 0:01:06]} 50. g4 {[%emt 0:01:36]} Qd6 {[%emt 0:02:32]} 51. Be4 {[%emt 0:00:40]} Bd4 {[%emt 0:01:30]} 52. Qf3 {[%emt 0:01:12]} Qf6 {[%emt 0:02:11]} 53. Bf5 {[%emt 0:01:38]} Qd6 {[%emt 0:00:23]} 54. Be4 {[%emt 0:00:11]} b5 {[%emt 0:00:44]} 55. Bd5 {[%emt 0:01:04]} Qf6 {[%emt 0:00:12]} 56. Qxf6+ {[%emt 0:00:50]} Kxf6 {[%emt 0:00:05]} 57. f3 {[%emt 0:00:32]} Ke7 {[%emt 0:00:48]} 58. Kf1 {[%emt 0:00:19]} Kd6 {[%emt 0:02:01]} 59. Bxf7 {[%emt 0:00:42]} Kc5 {[%emt 0:00:06]} 60. Ke2 {[%emt 0:00:06]} Kb4 {[%emt 0:00:48]} 61. Kd3 {[%emt 0:00:11]} Ka3 {[%emt 0:00:09]} 1/2-1/2

[Event "European School-ch 2019"]
[Site "Mamaia"]
[Date "2019.05.31"]
[Round "1.50"]
[White "Mustafina, Yuliana"]
[Black "Shuqja, Klean"]
[Result "0-1"]
[ECO "B01"]
[WhiteElo "1390"]
[BlackElo "1858"]
[Annotator "NA"]
[PlyCount "120"]
[EventDate "2019.05.31"]
[EventType "swiss"]
[EventCountry "ROU"]
[SourceTitle "playchess.com"]
[Source "ChessBase"]
[SourceQuality "1"]
[TimeControl "40/5400+30:1800+30"]

1. e4 {[%emt 0:00:00]} d5 {[%emt 0:00:00]} 2. exd5 {[%emt 0:00:00]} Qxd5 {[%emt 0:00:00]} 3. Nc3 {[%emt 0:00:00]} Qd8 {[%emt 0:00:00]} 4. d4 {[%emt 0:00:00]} Nf6 {[%emt 0:00:00]} 5. Nf3 {[%emt 0:00:17]} Bg4 {[%emt 0:00:00]} 6. Be2 {[%emt 0:00:24]} e6 {[%emt 0:00:00]} 7. h3 {[%emt 0:00:11]} Bxf3 {[%emt 0:00:00]} 8. Bxf3 {[%emt 0:00:06]} c6 {[%emt 0:00:00]} 9. O-O {[%emt 0:00:51]} Be7 {[%emt 0:00:00]} 10. Ne2 {[%emt 0:02:59]} O-O {[%emt 0:00:01]} 11. c3 {[%emt 0:00:14]} Nbd7 {[%emt 0:00:24]} 12. Nf4 {[%emt 0:01:07]} Qc7 {[%emt 0:06:55]} 13. Nd3 {[%emt 0:01:51]} Rad8 {[%emt 0:01:57]} 14. Qe2 {[%emt 0:02:42]} Bd6 {[%emt 0:14:59]} 15. Re1 {[%emt 0:01:06]} Rfe8 {[%emt 0:02:28]} 16. Ne5 {[%emt 0:01:18]} h6 {[%emt 0:08:13]} 17. g3 {[%emt 0:15:30]} c5 {[%emt 0:09:24]} 18. Nxd7 {[%emt 0:02:45]} Rxd7 {[%emt 0:05:18]} 19. dxc5 {[%emt 0:00:56]} Bxc5 {[%emt 0:02:56]} 20. Bf4 {[%emt 0:01:33]} Qb6 {[%emt 0:15:02]} 21. Rad1 {[%emt 0:01:02]} e5 {[%emt 0:06:58]} 22. Rxd7 {[%emt 0:05:09]} Nxd7 {[%emt 0:02:50]} 23. Qc2 {[%emt 0:04:03]} Re7 {[%emt 0:05:14]} 24. b4 {[%emt 0:01:52]} exf4 {[%emt 0:01:02]} 25. Rxe7 {[%emt 0:00:53]} Bxe7 {[%emt 0:00:11]} 26. gxf4 {[%emt 0:00:07]} Qg6+ {[%emt 0:02:52]} 27. Qxg6 {[%emt 0:00:11]} fxg6 {[%emt 0:00:02]} 28. Bxb7 {[%emt 0:00:12]} Nb6 {[%emt 0:00:33]} 29. Be4 {[%emt 0:01:16]} Kf7 {[%emt 0:00:26]} 30. Bc2 {[%emt 0:01:52]} Bd6 {[%emt 0:00:28]} 31. a3 {[%emt 0:01:08]} Bxf4 {[%emt 0:00:40]} 32. Bb3+ {[%emt 0:00:54]} Kf6 {[%emt 0:00:48]} 33. c4 {[%emt 0:00:14]} Ke5 {[%emt 0:00:41]} 34. c5 {[%emt 0:00:18]} Nd5 {[%emt 0:01:11]} 35. b5 {[%emt 0:01:09]} Kd4 {[%emt 0:01:43]} 36. c6 {[%emt 0:00:18]} Nc3 {[%emt 0:00:59]} 37. a4 {[%emt 0:00:34]} Kc5 {[%emt 0:00:24]} 38. Bc2 {[%emt 0:00:30]} g5 {[%emt 0:00:16]} 39. Kg2 {[%emt 0:00:23]} Kb4 {[%emt 0:00:14]} 40. Kf3 {[%emt 0:00:22]} Nxa4 {[%emt 0:00:16]} 41. Bd3 {[%emt 0:30:21]} Nc3 {[%emt 0:30:16]} 42. Kg4 {[%emt 0:00:19]} Nxb5 {[%emt 0:00:37]} 43. Kh5 {[%emt 0:00:11]} a5 {[%emt 0:00:11]} 44. Kg6 {[%emt 0:00:07]} a4 {[%emt 0:00:03]} 45. Bb1 {[%emt 0:00:46]} a3 {[%emt 0:00:21]} 46. Ba2 {[%emt 0:00:55]} Be5 {[%emt 0:00:00]} 47. Kf5 {[%emt 0:00:00]} Bd4 {[%emt 0:00:00]} 48. f3 {[%emt 0:00:00]} Kc5 {[%emt 0:00:00]} 49. Bb3 {[%emt 0:00:00]} Kxc6 {[%emt 0:00:00]} 50. Ke4 {[%emt 0:00:00]} Bf6 {[%emt 0:00:00]} 51. Kd3 {[%emt 0:00:00]} Kc5 {[%emt 0:00:00]} 52. Kc2 {[%emt 0:00:00]} Nd4+ {[%emt 0:00:00]} 53. Kc3 {[%emt 0:00:00]} Nxb3+ {[%emt 0:00:00]} 54. Kxb3 {[%emt 0:00:00]} Kd4 {[%emt 0:00:00]} 55. Kxa3 {[%emt 0:00:00]} Ke3 {[%emt 0:00:00]} 56. Kb3 {[%emt 0:00:00]} Kxf3 {[%emt 0:00:00]} 57. Kc2 {[%emt 0:00:00]} Kg3 {[%emt 0:00:00]} 58. Kd3 {[%emt 0:00:00]} Kxh3 {[%emt 0:00:00]} 59. Ke3 {[%emt 0:00:00]} g4 {[%emt 0:00:00]} 60. Kf2 {[%emt 0:00:00]} g3+ 0-1

[Event "European School-ch 2019"]
[Site "Mamaia"]
[Date "2019.05.31"]
[Round "1.51"]
[White "Kapicakova, Lucia"]
[Black "Petculescu, Diana-Silvana"]
[Result "1-0"]
[ECO "A05"]
[WhiteElo "1719"]
[BlackElo "1370"]
[Annotator "NA"]
[PlyCount "80"]
[EventDate "2019.05.31"]
[EventType "swiss"]
[EventCountry "ROU"]
[SourceTitle "playchess.com"]
[Source "ChessBase"]
[SourceQuality "1"]
[TimeControl "40/5400+30:1800+30"]

1. Nf3 {[%emt 0:00:00]} Nf6 {[%emt 0:00:00]} 2. g3 {[%emt 0:00:00]} e6 {[%emt 0:01:09]} 3. Bg2 {[%emt 0:00:00]} d5 {[%emt 0:00:52]} 4. O-O {[%emt 0:00:00]} Nc6 {[%emt 0:01:04]} 5. d3 {[%emt 0:00:14]} Be7 {[%emt 0:02:49]} 6. Nbd2 {[%emt 0:00:25]} O-O {[%emt 0:03:10]} 7. e4 {[%emt 0:01:36]} h6 {[%emt 0:02:28]} 8. e5 {[%emt 0:03:35]} Nd7 {[%emt 0:00:30]} 9. Re1 {[%emt 0:01:17]} b6 {[%emt 0:02:26]} 10. Nf1 {[%emt 0:01:48]} Bb7 {[%emt 0:01:47]} 11. h4 {[%emt 0:02:11]} Nc5 {[%emt 0:01:57]} 12. N1h2 {[%emt 0:07:52]} f5 {[%emt 0:19:46]} 13. exf6 {[%emt 0:19:27]} Rxf6 {[%emt 0:00:38]} 14. Bh3 {[%emt 0:08:24]} Qf8 {[%emt 0:04:14]} 15. Qe2 {[%emt 0:07:20]} d4 {[%emt 0:03:05]} 16. c3 {[%emt 0:12:41]} Ba6 {[%emt 0:01:31]} 17. c4 {[%emt 0:07:41]} Bb7 {[%emt 0:05:37]} 18. Bd2 {[%emt 0:03:30]} Bd6 {[%emt 0:03:12]} 19. b4 {[%emt 0:04:06]} Nxb4 {[%emt 0:02:21]} 20. Bxb4 {[%emt 0:00:25]} Bxf3 {[%emt 0:00:05]} 21. Nxf3 {[%emt 0:00:17]} Rxf3 {[%emt 0:01:17]} 22. Bxc5 {[%emt 0:00:45]} Bxc5 {[%emt 0:00:08]} 23. Bxe6+ {[%emt 0:03:56]} Kh8 {[%emt 0:00:26]} 24. Bd5 {[%emt 0:00:10]} Rf7 {[%emt 0:02:38]} 25. Bxa8 {[%emt 0:02:06]} Qxa8 {[%emt 0:00:11]} 26. Qe8+ {[%emt 0:00:16]} Rf8 {[%emt 0:00:09]} 27. Qxa8 {[%emt 0:00:40]} Rxa8 {[%emt 0:00:09]} 28. Re4 {[%emt 0:00:30]} Rf8 {[%emt 0:00:11]} 29. Rae1 {[%emt 0:00:26]} Rf3 {[%emt 0:00:19]} 30. Rd1 {[%emt 0:00:46]} Rf8 {[%emt 0:00:25]} 31. Kg2 {[%emt 0:01:39]} Kg8 {[%emt 0:00:11]} 32. g4 {[%emt 0:02:29]} Bd6 {[%emt 0:01:19]} 33. Rde1 {[%emt 0:02:45]} Kf7 {[%emt 0:00:33]} 34. Rxd4 {[%emt 0:00:50]} Kg6 {[%emt 0:00:06]} 35. Re6+ {[%emt 0:03:21]} Kf7 {[%emt 0:00:05]} 36. Rde4 {[%emt 0:00:52]} Bc5 {[%emt 0:00:27]} 37. g5 {[%emt 0:01:24]} hxg5 {[%emt 0:00:30]} 38. hxg5 {[%emt 0:00:07]} Kg8 {[%emt 0:00:22]} 39. Re8 {[%emt 0:01:58]} Rxe8 {[%emt 0:00:16]} 40. Rxe8+ {[%emt 0:00:05]} Kf7 1-0

[Event "European School-ch 2019"]
[Site "Mamaia"]
[Date "2019.05.31"]
[Round "1.52"]
[White "Ignacio Lopez, Anahi"]
[Black "Karaivanova, Petya"]
[Result "0-1"]
[ECO "C50"]
[WhiteElo "1362"]
[BlackElo "1655"]
[Annotator "NA"]
[PlyCount "46"]
[EventDate "2019.05.31"]
[EventType "swiss"]
[EventCountry "ROU"]
[SourceTitle "playchess.com"]
[Source "ChessBase"]
[SourceQuality "1"]
[TimeControl "40/5400+30:1800+30"]

1. e4 {[%emt 0:00:00]} e5 {[%emt 0:00:00]} 2. Nf3 {[%emt 0:00:00]} Nc6 {[%emt 0:00:00]} 3. Bc4 {[%emt 0:00:04]} Nf6 {[%emt 0:00:00]} 4. d3 {[%emt 0:00:40]} Bc5 {[%emt 0:00:00]} 5. c3 {[%emt 0:00:41]} d6 {[%emt 0:00:32]} 6. h3 {[%emt 0:01:16]} a6 {[%emt 0:00:53]} 7. Bb3 {[%emt 0:00:32]} h6 {[%emt 0:00:50]} 8. Nbd2 {[%emt 0:00:48]} O-O {[%emt 0:00:23]} 9. Nf1 {[%emt 0:01:12]} Ne7 {[%emt 0:02:30]} 10. Ng3 {[%emt 0:02:08]} Ng6 {[%emt 0:03:01]} 11. O-O {[%emt 0:01:20]} Re8 {[%emt 0:03:05]} 12. Re1 {[%emt 0:03:37]} Bb6 {[%emt 0:03:08]} 13. Be3 {[%emt 0:05:55]} c6 {[%emt 0:14:41]} 14. Qd2 {[%emt 0:14:41]} Bxe3 {[%emt 0:03:18]} 15. Rxe3 {[%emt 0:02:28]} Nf4 {[%emt 0:00:49]} 16. Rd1 {[%emt 0:01:31]} Be6 {[%emt 0:16:45]} 17. Bc2 {[%emt 0:03:24]} Qc8 {[%emt 0:03:09]} 18. d4 {[%emt 0:03:25]} Bxh3 {[%emt 0:11:07]} 19. gxh3 {[%emt 0:01:01]} Qxh3 {[%emt 0:00:05]} 20. Ne1 {[%emt 0:01:01]} Ng4 {[%emt 0:01:44]} 21. Nf1 {[%emt 0:00:50]} Nxe3 {[%emt 0:01:43]} 22. Qxe3 {[%emt 0:00:19]} Qg4+ {[%emt 0:01:40]} 23. Qg3 {[%emt 0:01:36]} Ne2+ {[%emt 0:00:14]} 0-1

[Event "European School-ch 2019"]
[Site "Mamaia"]
[Date "2019.05.31"]
[Round "1.53"]
[White "Ruzic, Pia Marie"]
[Black "Mikhailina, Elena"]
[Result "1-0"]
[ECO "A13"]
[WhiteElo "1959"]
[BlackElo "1744"]
[Annotator "NA"]
[PlyCount "55"]
[EventDate "2019.05.31"]
[EventType "swiss"]
[EventCountry "ROU"]
[SourceTitle "playchess.com"]
[Source "ChessBase"]
[SourceQuality "1"]
[TimeControl "40/5400+30:1800+30"]

1. c4 {[%emt 0:00:00]} e6 {[%emt 0:00:00]} 2. Nf3 {[%emt 0:00:00]} d5 {[%emt 0:00:00]} 3. d4 {[%emt 0:00:30]} Nf6 {[%emt 0:00:00]} 4. g3 {[%emt 0:00:10]} dxc4 {[%emt 0:02:07]} 5. Qa4+ {[%emt 0:00:08]} Nbd7 {[%emt 0:01:05]} 6. Qxc4 {[%emt 0:00:07]} a6 {[%emt 0:00:21]} 7. a4 {[%emt 0:01:29]} c5 {[%emt 0:02:52]} 8. Bg2 {[%emt 0:10:18]} cxd4 {[%emt 0:28:24]} 9. O-O {[%emt 0:07:11]} Nb6 {[%emt 0:20:31]} 10. Qxd4 {[%emt 0:02:15]} Qxd4 {[%emt 0:00:07]} 11. Nxd4 {[%emt 0:00:08]} e5 {[%emt 0:03:51]} 12. Nf3 {[%emt 0:01:12]} Bd6 {[%emt 0:01:10]} 13. Rd1 {[%emt 0:04:05]} Ke7 {[%emt 0:01:13]} 14. Nc3 {[%emt 0:19:01]} h6 {[%emt 0:14:33]} 15. a5 {[%emt 0:03:22]} Nbd7 {[%emt 0:01:08]} 16. Nd2 {[%emt 0:03:01]} Rb8 {[%emt 0:02:57]} 17. Nc4 {[%emt 0:00:52]} Bc7 {[%emt 0:00:06]} 18. Na4 {[%emt 0:04:23]} e4 {[%emt 0:09:17]} 19. Be3 {[%emt 0:04:43]} Ng4 {[%emt 0:05:52]} 20. Bd4 {[%emt 0:00:54]} Nge5 {[%emt 0:00:12]} 21. Nxe5 {[%emt 0:05:02]} Bxe5 {[%emt 0:00:16]} 22. Bxe4 {[%emt 0:00:46]} Bxd4 {[%emt 0:00:49]} 23. Rxd4 {[%emt 0:00:30]} Ne5 {[%emt 0:02:10]} 24. Rc1 {[%emt 0:02:01]} Rd8 {[%emt 0:01:09]} 25. Rc7+ {[%emt 0:00:29]} Rd7 {[%emt 0:00:05]} 26. Rdxd7+ {[%emt 0:00:36]} Nxd7 {[%emt 0:00:28]} 27. Nb6 {[%emt 0:09:44]} Kd6 {[%emt 0:01:04]} 28. Rxc8 {[%emt 0:00:08]} 1-0